[Event "Live Chess"]
[Site "Chess.com"]
[Date "2023.05.21"]
[Round "-"]
[White "elvenstar"]
[Black "BJAW87"]
[Result "1-0"]
[WhiteElo "1565"]
[BlackElo "1436"]
[TimeControl "300"]
[EndTime "16:41:45 PDT"]
[Termination "elvenstar won by resignation"]

1. e4 {[%clk 0:04:58.8]} 1... c6 {[%clk 0:04:59.2]} 2. f4 {[%clk 0:04:56.4]}
2... d5 {[%clk 0:04:58.3]} 3. exd5 {[%clk 0:04:54.6]} 3... cxd5 {[%clk
0:04:58.2]} 4. d4 {[%clk 0:04:53.4]} 4... Nc6 {[%clk 0:04:57.3]} 5. Nf3 {[%clk
0:04:53.3]} 5... Bg4 {[%clk 0:04:55.6]} 6. c3 {[%clk 0:04:51.1]} 6... e6 {[%clk
0:04:48.4]} 7. Be2 {[%clk 0:04:48]} 7... Nge7 {[%clk 0:04:39.5]} 8. O-O {[%clk
0:04:46.7]} 8... Nf5 {[%clk 0:04:38.3]} 9. Ne5 {[%clk 0:04:41.1]} 9... Bxe2
{[%clk 0:04:35]} 10. Qxe2 {[%clk 0:04:40.1]} 10... Qb6 {[%clk 0:04:25.3]} 11.
Kh1 {[%clk 0:04:35.9]} 11... Bd6 {[%clk 0:04:10.7]} 12. b3 {[%clk 0:04:33.5]}
12... Nxe5 {[%clk 0:03:55.8]} 13. fxe5 {[%clk 0:04:31.5]} 13... Bc7 {[%clk
0:03:53.3]} 14. Ba3 {[%clk 0:04:28.9]} 14... a5 {[%clk 0:03:43.1]} 15. Nd2
{[%clk 0:04:25.8]} 15... a4 {[%clk 0:03:22.5]} 16. Qg4 {[%clk 0:03:41.4]} 16...
g6 {[%clk 0:03:18.3]} 17. Qg5 {[%clk 0:03:38.9]} 17... axb3 {[%clk 0:02:57.4]}
18. Bc5 {[%clk 0:03:25.2]} 18... h6 {[%clk 0:02:43.8]} 19. Qf6 {[%clk
0:03:19.4]} 19... Bd8 {[%clk 0:02:30.5]} 20. Qxh8+ {[%clk 0:03:15.4]} 20... Kd7
{[%clk 0:02:30.1]} 21. Bxb6 {[%clk 0:03:12.7]} 1-0

[Event "Live Chess"]
[Site "Chess.com"]
[Date "2023.05.21"]
[Round "-"]
[White "Biranidun"]
[Black "domrobson"]
[Result "1-0"]
[WhiteElo "2654"]
[BlackElo "1784"]
[TimeControl "300"]
[EndTime "16:42:21 PDT"]
[Termination "Biranidun won by checkmate"]

1. e4 {[%clk 0:04:59]} 1... e5 {[%clk 0:04:59.2]} 2. Nf3 {[%clk 0:04:58]} 2...
Nc6 {[%clk 0:04:58.2]} 3. Bc4 {[%clk 0:04:56.1]} 3... Nf6 {[%clk 0:04:57.1]} 4.
Ng5 {[%clk 0:04:55]} 4... d5 {[%clk 0:04:56.1]} 5. exd5 {[%clk 0:04:54.5]} 5...
Na5 {[%clk 0:04:55.4]} 6. Bb5+ {[%clk 0:04:54.1]} 6... Bd7 {[%clk 0:04:54.8]} 7.
Qe2 {[%clk 0:04:52.6]} 7... Bd6 {[%clk 0:04:53.4]} 8. Nc3 {[%clk 0:04:50.8]}
8... O-O {[%clk 0:04:52.4]} 9. Bxd7 {[%clk 0:04:49.3]} 9... Qxd7 {[%clk
0:04:48.6]} 10. d3 {[%clk 0:04:49.2]} 10... h6 {[%clk 0:04:44.9]} 11. Nge4
{[%clk 0:04:48.5]} 11... Nxe4 {[%clk 0:04:41.2]} 12. dxe4 {[%clk 0:04:48.4]}
12... f5 {[%clk 0:04:39.8]} 13. exf5 {[%clk 0:04:47.2]} 13... Rxf5 {[%clk
0:04:34.2]} 14. Ne4 {[%clk 0:04:46.6]} 14... Raf8 {[%clk 0:04:24.7]} 15. Bd2
{[%clk 0:04:45.5]} 15... b6 {[%clk 0:04:22.7]} 16. Bxa5 {[%clk 0:04:44.4]} 16...
bxa5 {[%clk 0:04:21.6]} 17. O-O {[%clk 0:04:43.9]} 17... Qf7 {[%clk 0:04:14]}
18. c4 {[%clk 0:04:42.3]} 18... Rf4 {[%clk 0:04:06.6]} 19. f3 {[%clk 0:04:39.6]}
19... Be7 {[%clk 0:04:00]} 20. Rac1 {[%clk 0:04:36.4]} 20... Rd8 {[%clk
0:03:32.6]} 21. Rfd1 {[%clk 0:04:35.2]} 21... Rf8 {[%clk 0:03:30.8]} 22. c5
{[%clk 0:04:34.4]} 22... Qg6 {[%clk 0:03:25]} 23. d6 {[%clk 0:04:31.3]} 23...
cxd6 {[%clk 0:03:18.4]} 24. cxd6 {[%clk 0:04:31.2]} 24... Bd8 {[%clk 0:03:13.9]}
25. Kh1 {[%clk 0:04:29.6]} 25... Rh4 {[%clk 0:02:59.5]} 26. d7 {[%clk 0:04:26]}
26... Qh5 {[%clk 0:02:53.8]} 27. h3 {[%clk 0:04:25.1]} 27... Rhf4 {[%clk
0:02:23.3]} 28. Rc8 {[%clk 0:04:23]} 28... Bb6 {[%clk 0:02:11.2]} 29. d8=Q
{[%clk 0:04:19.5]} 29... Bxd8 {[%clk 0:02:04.3]} 30. Rdxd8 {[%clk 0:04:19.4]}
30... Rxd8 {[%clk 0:02:02.5]} 31. Rxd8+ {[%clk 0:04:18.7]} 31... Kh7 {[%clk
0:02:02.1]} 32. Qd3 {[%clk 0:04:17.7]} 32... Qf5 {[%clk 0:01:57.7]} 33. Rf8
{[%clk 0:04:11.3]} 33... Qxf8 {[%clk 0:01:54.4]} 34. Nf6+ {[%clk 0:04:10.6]}
34... Kh8 {[%clk 0:01:51.2]} 35. Qh7# {[%clk 0:04:10.5]} 1-0

[Event "Live Chess"]
[Site "Chess.com"]
[Date "2023.05.21"]
[Round "-"]
[White "fso"]
[Black "birdseed45"]
[Result "0-1"]
[WhiteElo "2223"]
[BlackElo "1877"]
[TimeControl "300"]
[EndTime "16:42:22 PDT"]
[Termination "birdseed45 won by checkmate"]

1. d4 {[%clk 0:04:57.2]} 1... Nf6 {[%clk 0:04:57.4]} 2. c4 {[%clk 0:04:55.8]}
2... g6 {[%clk 0:04:57.3]} 3. Nc3 {[%clk 0:04:54.5]} 3... Bg7 {[%clk 0:04:57]}
4. e4 {[%clk 0:04:53.4]} 4... d6 {[%clk 0:04:56.3]} 5. Nf3 {[%clk 0:04:51.8]}
5... O-O {[%clk 0:04:51]} 6. h3 {[%clk 0:04:50.3]} 6... c5 {[%clk 0:04:45.7]} 7.
d5 {[%clk 0:04:48]} 7... e6 {[%clk 0:04:43.3]} 8. Bg5 {[%clk 0:04:44.2]} 8...
exd5 {[%clk 0:04:41.6]} 9. Nxd5 {[%clk 0:04:41.1]} 9... Be6 {[%clk 0:04:34.1]}
10. Bd3 {[%clk 0:04:28.5]} 10... Bxd5 {[%clk 0:04:29.8]} 11. cxd5 {[%clk
0:04:24.1]} 11... Qa5+ {[%clk 0:04:26.3]} 12. Bd2 {[%clk 0:04:21.1]} 12... Qb6
{[%clk 0:04:24.4]} 13. Bc3 {[%clk 0:04:19.7]} 13... Nbd7 {[%clk 0:04:21.1]} 14.
O-O {[%clk 0:04:17.9]} 14... Rfe8 {[%clk 0:04:17.1]} 15. Re1 {[%clk 0:04:08.1]}
15... Ne5 {[%clk 0:04:13.9]} 16. Nxe5 {[%clk 0:04:04.9]} 16... dxe5 {[%clk
0:04:13.8]} 17. Qd2 {[%clk 0:03:53]} 17... h5 {[%clk 0:04:09.1]} 18. Qg5 {[%clk
0:03:48.9]} 18... Qd6 {[%clk 0:04:00.8]} 19. Qg3 {[%clk 0:03:41.2]} 19... a6
{[%clk 0:03:47.9]} 20. a4 {[%clk 0:03:38.7]} 20... Rac8 {[%clk 0:03:41.2]} 21.
Rad1 {[%clk 0:02:57.9]} 21... c4 {[%clk 0:03:26.7]} 22. Bc2 {[%clk 0:02:55.9]}
22... b5 {[%clk 0:03:15.9]} 23. axb5 {[%clk 0:02:53.2]} 23... axb5 {[%clk
0:03:15.8]} 24. f3 {[%clk 0:02:35.8]} 24... b4 {[%clk 0:03:11.6]} 25. Bd2 {[%clk
0:02:34.6]} 25... b3 {[%clk 0:02:57.7]} 26. Bb1 {[%clk 0:02:33.2]} 26... Qb6+
{[%clk 0:02:50.5]} 27. Qf2 {[%clk 0:02:29]} 27... Qxf2+ {[%clk 0:02:44.2]} 28.
Kxf2 {[%clk 0:02:28.9]} 28... Bf8 {[%clk 0:02:42.6]} 29. Bc3 {[%clk 0:02:25.6]}
29... Bc5+ {[%clk 0:02:39.8]} 30. Kf1 {[%clk 0:02:23.8]} 30... Kg7 {[%clk
0:02:29.7]} 31. g3 {[%clk 0:02:18.9]} 31... Nd7 {[%clk 0:02:18.6]} 32. f4 {[%clk
0:02:16.2]} 32... f6 {[%clk 0:02:17.5]} 33. Kg2 {[%clk 0:01:57.8]} 33... Ra8
{[%clk 0:02:04.6]} 34. Kf3 {[%clk 0:01:56.2]} 34... Rab8 {[%clk 0:01:53.4]} 35.
g4 {[%clk 0:01:53.3]} 35... hxg4+ {[%clk 0:01:50.8]} 36. hxg4 {[%clk 0:01:53.2]}
36... Rh8 {[%clk 0:01:49.5]} 37. g5 {[%clk 0:01:49.3]} 37... Rh3+ {[%clk
0:01:47.5]} 38. Kg4 {[%clk 0:01:47.2]} 38... Rbh8 {[%clk 0:01:42.9]} 39. gxf6+
{[%clk 0:01:41.3]} 39... Nxf6+ {[%clk 0:01:33.6]} 40. Kg5 {[%clk 0:01:39.7]}
40... R8h5# {[%clk 0:01:31.3]} 0-1

[Event "Live Chess"]
[Site "Chess.com"]
[Date "2023.05.21"]
[Round "-"]
[White "Cimon"]
[Black "1600x"]
[Result "0-1"]
[WhiteElo "1874"]
[BlackElo "1835"]
[TimeControl "300"]
[EndTime "16:42:26 PDT"]
[Termination "1600x won on time"]

1. Nf3 {[%clk 0:04:58]} 1... e5 {[%clk 0:04:54.7]} 2. Nxe5 {[%clk 0:04:55.4]}
2... Bd6 {[%clk 0:04:51]} 3. Nf3 {[%clk 0:04:53]} 3... Nf6 {[%clk 0:04:45.7]} 4.
Nc3 {[%clk 0:04:44]} 4... Bb4 {[%clk 0:04:42.2]} 5. d3 {[%clk 0:04:33.2]} 5...
Bd6 {[%clk 0:04:42.1]} 6. e4 {[%clk 0:04:30.8]} 6... Qe7 {[%clk 0:04:40]} 7. Be2
{[%clk 0:04:23.1]} 7... b6 {[%clk 0:04:38.3]} 8. O-O {[%clk 0:04:19.4]} 8... O-O
{[%clk 0:04:33.1]} 9. Bg5 {[%clk 0:04:15.5]} 9... Bb7 {[%clk 0:04:30.5]} 10. h3
{[%clk 0:04:10.2]} 10... c6 {[%clk 0:04:26.7]} 11. d4 {[%clk 0:04:04.5]} 11...
h6 {[%clk 0:04:23.4]} 12. Bh4 {[%clk 0:03:58.9]} 12... g5 {[%clk 0:04:20.8]} 13.
e5 {[%clk 0:03:49.6]} 13... gxh4 {[%clk 0:04:16.7]} 14. exd6 {[%clk 0:03:48.5]}
14... Qxd6 {[%clk 0:04:15.2]} 15. Nxh4 {[%clk 0:03:46.9]} 15... Nd5 {[%clk
0:04:12.9]} 16. Nxd5 {[%clk 0:03:20.7]} 16... cxd5 {[%clk 0:04:07.6]} 17. Nf5
{[%clk 0:03:15.3]} 17... Qf6 {[%clk 0:03:52.8]} 18. Bd3 {[%clk 0:03:06.7]} 18...
Kh8 {[%clk 0:03:45.9]} 19. Qd2 {[%clk 0:02:49.7]} 19... Ba6 {[%clk 0:03:41.7]}
20. Rfe1 {[%clk 0:02:43.7]} 20... Bxd3 {[%clk 0:03:37.7]} 21. Qxd3 {[%clk
0:02:41.1]} 21... Rd8 {[%clk 0:03:34.3]} 22. Re3 {[%clk 0:02:35.2]} 22... Nc6
{[%clk 0:03:30.2]} 23. c3 {[%clk 0:02:31.8]} 23... a5 {[%clk 0:03:27.3]} 24.
Rae1 {[%clk 0:02:25.3]} 24... a4 {[%clk 0:03:22.6]} 25. Rf3 {[%clk 0:02:19.7]}
25... Rg8 {[%clk 0:03:15.3]} 26. Qd2 {[%clk 0:02:15.2]} 26... Qg5 {[%clk
0:03:10.5]} 27. Qxg5 {[%clk 0:02:09.5]} 27... hxg5 {[%clk 0:03:08.8]} 28. Nd6
{[%clk 0:02:00.9]} 28... Rg6 {[%clk 0:03:04.5]} 29. Nxf7+ {[%clk 0:01:57.9]}
29... Kg8 {[%clk 0:03:02.2]} 30. Ne5 {[%clk 0:01:55.7]} 30... Nxe5 {[%clk
0:02:59.2]} 31. Rxe5 {[%clk 0:01:54.2]} 31... a3 {[%clk 0:02:57.6]} 32. b3
{[%clk 0:01:52.8]} 32... d6 {[%clk 0:02:55.2]} 33. Rxd5 {[%clk 0:01:51.1]} 33...
Kg7 {[%clk 0:02:53.7]} 34. Kf1 {[%clk 0:01:43.8]} 34... Rd8 {[%clk 0:02:50.7]}
35. Rb5 {[%clk 0:01:39.3]} 35... d5 {[%clk 0:02:47.1]} 36. Re3 {[%clk
0:01:32.5]} 36... Rf6 {[%clk 0:02:39.4]} 37. Re7+ {[%clk 0:01:29]} 37... Kg6
{[%clk 0:02:35.5]} 38. Rb7 {[%clk 0:01:27.1]} 38... Rc8 {[%clk 0:02:26.2]} 39.
R7xb6 {[%clk 0:01:23.6]} 39... Rxc3 {[%clk 0:02:24]} 40. Rxf6+ {[%clk
0:01:21.9]} 40... Kxf6 {[%clk 0:02:23.1]} 41. Ra5 {[%clk 0:01:11.5]} 41... Rc1+
{[%clk 0:02:21.4]} 42. Ke2 {[%clk 0:01:09.5]} 42... Rc2+ {[%clk 0:02:18.4]} 43.
Kf3 {[%clk 0:01:06.8]} 43... Rxa2 {[%clk 0:02:16.6]} 44. Ra6+ {[%clk 0:01:02.9]}
44... Kf7 {[%clk 0:02:14.2]} 45. b4 {[%clk 0:01:01.5]} 45... Rb2 {[%clk
0:02:12.2]} 46. Rxa3 {[%clk 0:00:59.2]} 46... Rxb4 {[%clk 0:02:10.2]} 47. Ke3
{[%clk 0:00:57.7]} 47... Ke6 {[%clk 0:02:08.1]} 48. g3 {[%clk 0:00:54]} 48...
Kf5 {[%clk 0:02:04.2]} 49. f3 {[%clk 0:00:46]} 49... Rb8 {[%clk 0:01:55.3]} 50.
g4+ {[%clk 0:00:40.1]} 50... Kf6 {[%clk 0:01:40.2]} 51. Ra6+ {[%clk 0:00:38.4]}
51... Kf7 {[%clk 0:01:34.8]} 52. Kf2 {[%clk 0:00:36.6]} 52... Rb2+ {[%clk
0:01:31.1]} 53. Kg3 {[%clk 0:00:35.2]} 53... Rb4 {[%clk 0:01:27.6]} 54. h4
{[%clk 0:00:29.3]} 54... gxh4+ {[%clk 0:01:18.2]} 55. Kxh4 {[%clk 0:00:28.3]}
55... Rxd4 {[%clk 0:01:10.5]} 56. Kg5 {[%clk 0:00:27.4]} 56... Rd2 {[%clk
0:01:09.3]} 57. f4 {[%clk 0:00:26.3]} 57... d4 {[%clk 0:01:07.7]} 58. f5 {[%clk
0:00:24.7]} 58... Rd1 {[%clk 0:01:05.9]} 59. Ra7+ {[%clk 0:00:23.5]} 59... Ke8
{[%clk 0:01:04.5]} 60. Kf6 {[%clk 0:00:21]} 60... d3 {[%clk 0:01:03.1]} 61. g5
{[%clk 0:00:18.7]} 61... Rc1 {[%clk 0:00:59.9]} 62. Ra8+ {[%clk 0:00:16.4]}
62... Kd7 {[%clk 0:00:58.2]} 63. g6 {[%clk 0:00:14.2]} 63... d2 {[%clk
0:00:56.5]} 64. g7 {[%clk 0:00:12.5]} 64... Rg1 {[%clk 0:00:52.9]} 65. Ra7+
{[%clk 0:00:10]} 65... Kd6 {[%clk 0:00:50.1]} 66. Ra6+ {[%clk 0:00:08.4]} 66...
Kc5 {[%clk 0:00:48.9]} 67. Kf7 {[%clk 0:00:06.6]} 67... d1=Q {[%clk 0:00:46.5]}
68. g8=Q {[%clk 0:00:04.3]} 68... Qd7+ {[%clk 0:00:44.3]} 69. Kf6 {[%clk
0:00:01.9]} 69... Rxg8 {[%clk 0:00:41.4]} 0-1

[Event "Live Chess"]
[Site "Chess.com"]
[Date "2023.05.21"]
[Round "-"]
[White "DaveL5678"]
[Black "toog"]
[Result "0-1"]
[WhiteElo "1011"]
[BlackElo "2582"]
[TimeControl "300"]
[EndTime "16:42:37 PDT"]
[Termination "toog won by checkmate"]

1. e4 {[%clk 0:04:53.9]} 1... c5 {[%clk 0:04:53]} 2. b3 {[%clk 0:04:49.5]} 2...
Nc6 {[%clk 0:04:52.9]} 3. Bb2 {[%clk 0:04:45.4]} 3... Nf6 {[%clk 0:04:51.8]} 4.
f3 {[%clk 0:04:42.1]} 4... d5 {[%clk 0:04:50.2]} 5. Bb5 {[%clk 0:04:39.1]} 5...
dxe4 {[%clk 0:04:48.1]} 6. Bxf6 {[%clk 0:04:34.4]} 6... gxf6 {[%clk 0:04:44.5]}
7. fxe4 {[%clk 0:04:25.2]} 7... Rg8 {[%clk 0:04:41.7]} 8. g3 {[%clk 0:04:17.1]}
8... Bd7 {[%clk 0:04:39.5]} 9. Nc3 {[%clk 0:04:08.5]} 9... Nd4 {[%clk
0:04:37.2]} 10. Bxd7+ {[%clk 0:03:56.5]} 10... Qxd7 {[%clk 0:04:37.1]} 11. d3
{[%clk 0:03:53.3]} 11... f5 {[%clk 0:04:35.7]} 12. Nge2 {[%clk 0:03:43.4]} 12...
Nf3+ {[%clk 0:04:33.3]} 13. Kf2 {[%clk 0:03:28.3]} 13... Ne5 {[%clk 0:04:31.4]}
14. Rf1 {[%clk 0:03:19.6]} 14... Bg7 {[%clk 0:04:27.4]} 15. Rc1 {[%clk 0:02:57]}
15... Ng4+ {[%clk 0:04:23.4]} 16. Kf3 {[%clk 0:02:35.2]} 16... Nxh2+ {[%clk
0:04:20.4]} 17. Kg2 {[%clk 0:02:30.7]} 17... Ng4 {[%clk 0:04:19]} 18. Qd2 {[%clk
0:02:20.2]} 18... Bh6 {[%clk 0:04:17]} 19. Nf4 {[%clk 0:02:11.2]} 19... e5
{[%clk 0:04:14.7]} 20. Ncd5 {[%clk 0:02:01.3]} 20... exf4 {[%clk 0:03:58.8]} 21.
gxf4 {[%clk 0:01:42.6]} 21... Ne3+ {[%clk 0:03:54]} 22. Kf3 {[%clk 0:01:34]}
22... Nxd5 {[%clk 0:03:53.9]} 23. exd5 {[%clk 0:01:31.6]} 23... Qxd5+ {[%clk
0:03:53.8]} 24. Ke2 {[%clk 0:01:29.6]} 24... Rg2+ {[%clk 0:03:51.4]} 25. Kd1
{[%clk 0:01:22.5]} 25... Rxd2+ {[%clk 0:03:49.4]} 26. Kxd2 {[%clk 0:01:21.9]}
26... Qg2+ {[%clk 0:03:48.2]} 27. Ke1 {[%clk 0:01:19.6]} 27... O-O-O {[%clk
0:03:46.2]} 28. Rf2 {[%clk 0:01:16.3]} 28... Re8+ {[%clk 0:03:43.7]} 29. Kd2
{[%clk 0:01:12.7]} 29... Qxf2+ {[%clk 0:03:42.6]} 30. Kc3 {[%clk 0:01:10.2]}
30... Qd4+ {[%clk 0:03:42.5]} 31. Kd2 {[%clk 0:01:05.6]} 31... Bxf4+ {[%clk
0:03:42.4]} 32. Kd1 {[%clk 0:01:01.5]} 32... Qg1# {[%clk 0:03:42.3]} 0-1

[Event "Live Chess"]
[Site "Chess.com"]
[Date "2023.05.21"]
[Round "-"]
[White "sanjesh_ananda"]
[Black "grillage"]
[Result "0-1"]
[WhiteElo "1266"]
[BlackElo "1838"]
[TimeControl "300"]
[EndTime "16:42:54 PDT"]
[Termination "grillage won on time"]

1. e4 {[%clk 0:04:57.6]} 1... d5 {[%clk 0:04:58.7]} 2. exd5 {[%clk 0:04:54.7]}
2... Qxd5 {[%clk 0:04:57.6]} 3. Nc3 {[%clk 0:04:53.2]} 3... Qd8 {[%clk
0:04:53.2]} 4. Nf3 {[%clk 0:04:50.6]} 4... Nf6 {[%clk 0:04:52]} 5. Bc4 {[%clk
0:04:46.1]} 5... a6 {[%clk 0:04:50]} 6. O-O {[%clk 0:04:43.1]} 6... Bg4 {[%clk
0:04:42.6]} 7. h3 {[%clk 0:04:41]} 7... Bxf3 {[%clk 0:04:41.2]} 8. Qxf3 {[%clk
0:04:39.5]} 8... Nc6 {[%clk 0:04:34]} 9. Ne4 {[%clk 0:04:36.1]} 9... e6 {[%clk
0:04:26.8]} 10. c3 {[%clk 0:04:27.3]} 10... Ne5 {[%clk 0:04:19.8]} 11. Nxf6+
{[%clk 0:04:21]} 11... Qxf6 {[%clk 0:04:10.9]} 12. Qxb7 {[%clk 0:04:17.3]} 12...
Qd8 {[%clk 0:04:01.9]} 13. Bxa6 {[%clk 0:04:09.3]} 13... Rb8 {[%clk 0:03:45.1]}
14. Bb5+ {[%clk 0:03:29]} 14... Nd7 {[%clk 0:03:30.1]} 15. Bxd7+ {[%clk
0:03:25.8]} 15... Kxd7 {[%clk 0:03:29.2]} 16. Qf3 {[%clk 0:03:10.2]} 16... f6
{[%clk 0:03:09.5]} 17. b4 {[%clk 0:03:08.1]} 17... Bd6 {[%clk 0:03:07.7]} 18. d4
{[%clk 0:02:57.2]} 18... Ke7 {[%clk 0:02:51.9]} 19. a4 {[%clk 0:02:49.4]} 19...
g5 {[%clk 0:02:37]} 20. a5 {[%clk 0:02:42.2]} 20... h5 {[%clk 0:02:27.3]} 21. a6
{[%clk 0:02:37.2]} 21... Qg8 {[%clk 0:02:07.7]} 22. Re1 {[%clk 0:02:32.2]} 22...
Kf7 {[%clk 0:02:00.2]} 23. a7 {[%clk 0:02:26.5]} 23... Ra8 {[%clk 0:01:58.6]}
24. b5 {[%clk 0:02:19.4]} 24... g4 {[%clk 0:01:57.2]} 25. hxg4 {[%clk
0:02:14.1]} 25... hxg4 {[%clk 0:01:56.1]} 26. Qc6 {[%clk 0:02:06.6]} 26... Qh7
{[%clk 0:01:44.2]} 27. Qd7+ {[%clk 0:02:04.3]} 27... Be7 {[%clk 0:01:43.5]} 28.
Qxe6+ {[%clk 0:01:56.3]} 28... Kf8 {[%clk 0:01:42.8]} 29. Kf1 {[%clk 0:01:43.9]}
29... Qh1+ {[%clk 0:01:38.5]} 30. Ke2 {[%clk 0:01:42.3]} 30... Qxg2 {[%clk
0:01:37.7]} 31. Kd1 {[%clk 0:01:06.9]} 31... Qf3+ {[%clk 0:01:25.5]} 32. Kc2
{[%clk 0:01:05.2]} 32... Rh2 {[%clk 0:01:13.5]} 33. Qxe7+ {[%clk 0:01:02.9]}
33... Kg8 {[%clk 0:01:10.8]} 34. Qe6+ {[%clk 0:00:58]} 34... Kg7 {[%clk
0:01:08.9]} 35. Qe7+ {[%clk 0:00:16]} 35... Kg6 {[%clk 0:01:08]} 36. Kb1 {[%clk
0:00:06.1]} 36... Qxf2 {[%clk 0:01:03.1]} 37. Qe4+ {[%clk 0:00:02.1]} 37... Kg7
{[%clk 0:00:42.7]} 0-1

[Event "Live Chess"]
[Site "Chess.com"]
[Date "2023.05.21"]
[Round "-"]
[White "LiamBellwood"]
[Black "flyingpuffins"]
[Result "0-1"]
[WhiteElo "2051"]
[BlackElo "1974"]
[TimeControl "300"]
[EndTime "16:43:04 PDT"]
[Termination "flyingpuffins won by resignation"]

1. d4 {[%clk 0:04:55]} 1... d5 {[%clk 0:04:58.2]} 2. Nc3 {[%clk 0:04:53.5]} 2...
Nf6 {[%clk 0:04:54.8]} 3. Bf4 {[%clk 0:04:52.1]} 3... a6 {[%clk 0:04:53.7]} 4.
e3 {[%clk 0:04:50.9]} 4... c5 {[%clk 0:04:52.8]} 5. dxc5 {[%clk 0:04:50.8]} 5...
Nc6 {[%clk 0:04:49.5]} 6. a3 {[%clk 0:04:50.3]} 6... e5 {[%clk 0:04:45.8]} 7.
Bg5 {[%clk 0:04:49.9]} 7... Bxc5 {[%clk 0:04:43.2]} 8. Bxf6 {[%clk 0:04:49.4]}
8... Qxf6 {[%clk 0:04:33.7]} 9. Nxd5 {[%clk 0:04:48.2]} 9... Qd6 {[%clk
0:04:18.5]} 10. e4 {[%clk 0:04:32.6]} 10... O-O {[%clk 0:04:08.5]} 11. Bc4
{[%clk 0:04:21.8]} 11... b5 {[%clk 0:03:58]} 12. Ba2 {[%clk 0:04:18.5]} 12...
Be6 {[%clk 0:03:53.6]} 13. Ne2 {[%clk 0:04:01.7]} 13... Rad8 {[%clk 0:03:49.4]}
14. Nec3 {[%clk 0:03:49.9]} 14... Kh8 {[%clk 0:03:45.2]} 15. O-O {[%clk
0:03:47.2]} 15... f5 {[%clk 0:03:43]} 16. Re1 {[%clk 0:03:35.2]} 16... f4 {[%clk
0:03:32.6]} 17. b4 {[%clk 0:03:25.9]} 17... Ba7 {[%clk 0:03:28.9]} 18. Qh5
{[%clk 0:03:00.6]} 18... f3 {[%clk 0:03:17.6]} 19. Rad1 {[%clk 0:02:56.4]} 19...
Nd4 {[%clk 0:03:07.6]} 20. g3 {[%clk 0:02:36.8]} 20... Rc8 {[%clk 0:02:23.5]}
21. Rd2 {[%clk 0:01:38]} 21... Rxc3 {[%clk 0:01:55.4]} 22. Nxc3 {[%clk
0:01:24.9]} 22... Bxa2 {[%clk 0:01:54]} 23. Nxa2 {[%clk 0:01:19.7]} 23... Ne2+
{[%clk 0:01:53.2]} 24. Rexe2 {[%clk 0:00:36.4]} 24... fxe2 {[%clk 0:01:53.1]}
25. Qxe2 {[%clk 0:00:35.8]} 25... Rxf2 {[%clk 0:00:57.8]} 26. Rxd6 {[%clk
0:00:15.9]} 26... Rxe2+ {[%clk 0:00:56.8]} 27. Kh1 {[%clk 0:00:10.9]} 27... h5
{[%clk 0:00:52.6]} 28. Rd7 {[%clk 0:00:10.2]} 28... Bd4 {[%clk 0:00:43.1]} 29.
c3 {[%clk 0:00:08.8]} 29... Be3 {[%clk 0:00:38.2]} 30. Rd8+ {[%clk 0:00:05.5]}
30... Kh7 {[%clk 0:00:36.8]} 31. c4 {[%clk 0:00:04.8]} 31... Rxa2 {[%clk
0:00:35.3]} 32. cxb5 {[%clk 0:00:04.7]} 32... axb5 {[%clk 0:00:34.5]} 33. Rd5
{[%clk 0:00:03.9]} 33... Rxa3 {[%clk 0:00:31.3]} 34. Rxb5 {[%clk 0:00:03.8]}
34... Bd4 {[%clk 0:00:30.1]} 35. Rb6 {[%clk 0:00:03.7]} 35... Rb3 {[%clk
0:00:29.5]} 36. Rb7 {[%clk 0:00:03.6]} 36... Kg6 {[%clk 0:00:27.9]} 37. Kg2
{[%clk 0:00:03.5]} 37... Rb2+ {[%clk 0:00:25.7]} 38. Kh3 {[%clk 0:00:03.4]}
38... Kf6 {[%clk 0:00:23.9]} 39. Rd7 {[%clk 0:00:03.3]} 39... Ke6 {[%clk
0:00:22.6]} 40. Rxg7 {[%clk 0:00:03]} 40... Rxb4 {[%clk 0:00:21.3]} 41. Rg6+
{[%clk 0:00:02.9]} 41... Kf7 {[%clk 0:00:19.8]} 42. Rh6 {[%clk 0:00:02.8]} 42...
h4 {[%clk 0:00:17.6]} 43. Rd6 {[%clk 0:00:02.7]} 43... hxg3 {[%clk 0:00:16.3]}
44. Rd7+ {[%clk 0:00:02.6]} 44... Ke6 {[%clk 0:00:15.3]} 45. hxg3 {[%clk
0:00:02.5]} 45... Kxd7 {[%clk 0:00:14.3]} 0-1

[Event "Live Chess"]
[Site "Chess.com"]
[Date "2023.05.21"]
[Round "-"]
[White "Hussamalhaidar"]
[Black "chessfiction"]
[Result "0-1"]
[WhiteElo "1039"]
[BlackElo "2331"]
[TimeControl "300"]
[EndTime "16:43:13 PDT"]
[Termination "chessfiction won by checkmate"]

1. b3 {[%clk 0:04:56.9]} 1... d5 {[%clk 0:04:59.7]} 2. Bb2 {[%clk 0:04:55]} 2...
Bg4 {[%clk 0:04:59]} 3. h3 {[%clk 0:04:45.6]} 3... Bh5 {[%clk 0:04:57]} 4. Nf3
{[%clk 0:04:40.9]} 4... Nc6 {[%clk 0:04:56.2]} 5. Nc3 {[%clk 0:04:37.1]} 5... e5
{[%clk 0:04:55]} 6. e3 {[%clk 0:04:31.6]} 6... Nf6 {[%clk 0:04:52.7]} 7. g4
{[%clk 0:04:16.9]} 7... Bg6 {[%clk 0:04:49.7]} 8. Nh4 {[%clk 0:04:13.2]} 8... d4
{[%clk 0:04:47.5]} 9. Nxg6 {[%clk 0:04:06.3]} 9... hxg6 {[%clk 0:04:47.4]} 10.
exd4 {[%clk 0:03:42.4]} 10... exd4 {[%clk 0:04:47.3]} 11. Qe2+ {[%clk
0:03:34.7]} 11... Be7 {[%clk 0:04:45.5]} 12. Ne4 {[%clk 0:03:21.7]} 12... O-O
{[%clk 0:04:44]} 13. Nxf6+ {[%clk 0:03:12.2]} 13... Bxf6 {[%clk 0:04:43.9]} 14.
Qc4 {[%clk 0:02:47.3]} 14... Ne5 {[%clk 0:04:38.8]} 15. Qa4 {[%clk 0:02:36.1]}
15... Nf3+ {[%clk 0:04:33.5]} 16. Kd1 {[%clk 0:02:26.7]} 16... Qd5 {[%clk
0:04:32.3]} 17. Bg2 {[%clk 0:02:04.9]} 17... Rfe8 {[%clk 0:04:30.2]} 18. Qc4
{[%clk 0:01:31.2]} 18... Qe4 {[%clk 0:04:26.5]} 19. Qd3 {[%clk 0:01:00.5]} 19...
Qe1+ {[%clk 0:04:23]} 20. Rxe1 {[%clk 0:00:55.6]} 20... Rxe1# {[%clk 0:04:22.9]}
0-1